[Event "European Online Club-ch-E 2021"]
[Site "Online"]
[Date "2021.03.27"]
[Round "5.7"]
[White "Garrido Dominguez, Jesus"]
[Black "Gozzoli, Yannick"]
[Result "1/2-1/2"]
[ECO "C68"]
[WhiteElo "2413"]
[BlackElo "2600"]
[Annotator "ChessBase"]
[PlyCount "202"]
[EventDate "2021.03.27"]
[EventType "team-tourn"]
[EventCountry "NET"]
[SourceTitle "playchess.com"]
[Source "ChessBase"]
[SourceQuality "1"]
[TimeControl "900+5"]

1. e4 {[%emt 0:00:00]} e5 {[%emt 0:00:05]} 2. Nf3 {[%emt 0:00:07]} Nc6 {[%emt 0:00:02]} 3. Bb5 {[%emt 0:00:05]} a6 {[%emt 0:00:12]} 4. Bxc6 {[%emt 0:00:03]} dxc6 {[%emt 0:00:02]} 5. d4 {[%emt 0:00:02]} exd4 {[%emt 0:00:03]} 6. Qxd4 {[%emt 0:00:02]} Qxd4 {[%emt 0:00:01]} 7. Nxd4 {[%emt 0:00:02]} Bd7 {[%emt 0:00:08]} 8. Be3 {[%emt 0:00:12]} O-O-O {[%emt 0:00:04]} 9. Nd2 {[%emt 0:00:03]} Ne7 {[%emt 0:00:36]} 10. O-O-O {[%emt 0:00:08]} c5 {[%emt 0:00:46]} 11. Ne2 {[%emt 0:00:09]} b6 {[%emt 0:00:14]} 12. f4 {[%emt 0:00:30]} f5 {[%emt 0:00:08]} 13. e5 {[%emt 0:00:35]} Nd5 {[%emt 0:00:55]} 14. Nf1 {[%emt 0:00:03]} Bb5 {[%emt 0:00:34]} 15. Rd2 {[%emt 0:00:10]} Be7 {[%emt 0:00:19]} 16. h4 {[%emt 0:01:24]} h5 {[%emt 0:00:48]} 17. a3 {[%emt 0:00:25]} g6 {[%emt 0:01:00]} 18. g3 {[%emt 0:00:16]} c4 {[%emt 0:00:47]} 19. c3 {[%emt 0:00:23]} c5 {[%emt 0:00:03]} 20. Bf2 {[%emt 0:00:12]} Ba4 {[%emt 0:00:09]} 21. Nh2 {[%emt 0:03:24]} Nc7 {[%emt 0:00:39]} 22. Rxd8+ {[%emt 0:00:16]} Rxd8 {[%emt 0:00:04]} 23. Re1 {[%emt 0:00:59]} Rd3 {[%emt 0:00:22]} 24. Nf1 {[%emt 0:00:11]} Ne6 {[%emt 0:00:33]} 25. Ne3 {[%emt 0:00:33]} b5 {[%emt 0:00:05]} 26. Kb1 {[%emt 0:00:38]} Kc7 {[%emt 0:00:16]} 27. Nc1 {[%emt 0:00:12]} Rd8 {[%emt 0:00:09]} 28. Re2 {[%emt 0:00:04]} Kc6 {[%emt 0:00:17]} 29. Be1 {[%emt 0:00:02]} Rd3 {[%emt 0:02:14]} 30. Nxd3 {[%emt 0:00:22]} cxd3 {[%emt 0:00:00]} 31. Rd2 {[%emt 0:00:02]} c4 {[%emt 0:00:10]} 32. Rg2 {[%emt 0:02:00]} Nc5 {[%emt 0:00:31]} 33. Kc1 {[%emt 0:00:08]} Ne4 {[%emt 0:00:03]} 34. Nf1 {[%emt 0:00:07]} Bc5 {[%emt 0:00:13]} 35. Rh2 {[%emt 0:00:23]} Kd5 {[%emt 0:00:19]} 36. Rg2 {[%emt 0:00:04]} a5 {[%emt 0:00:04]} 37. Rh2 {[%emt 0:00:02]} Bb3 {[%emt 0:00:07]} 38. Rg2 {[%emt 0:00:03]} Ba4 {[%emt 0:00:17]} 39. Rh2 {[%emt 0:00:15]} Bb6 {[%emt 0:00:30]} 40. Rg2 {[%emt 0:00:03]} Nc5 {[%emt 0:02:25]} 41. Nd2 {[%emt 0:00:03]} Bd8 {[%emt 0:00:10]} 42. Bf2 {[%emt 0:00:12]} Be7 {[%emt 0:00:02]} 43. Be3 {[%emt 0:00:28]} Bc2 {[%emt 0:00:05]} 44. Bf2 {[%emt 0:00:58]} Ne4 {[%emt 0:00:10]} 45. Bb6 {[%emt 0:00:23]} b4 {[%emt 0:00:08]} 46. axb4 {[%emt 0:00:10]} axb4 {[%emt 0:00:00]} 47. Ba5 {[%emt 0:00:07]} bxc3 {[%emt 0:00:06]} 48. Nxe4 {[%emt 0:00:02]} fxe4 {[%emt 0:00:08]} 49. Bxc3 {[%emt 0:00:06]} Bb3 {[%emt 0:00:08]} 50. g4 {[%emt 0:00:06]} hxg4 {[%emt 0:00:13]} 51. Rxg4 {[%emt 0:00:03]} e3 {[%emt 0:00:06]} 52. Rxg6 {[%emt 0:00:07]} Bxh4 {[%emt 0:00:07]} 53. e6 {[%emt 0:00:06]} e2 {[%emt 0:01:08]} 54. Rg5+ {[%emt 0:01:02]} Kxe6 {[%emt 0:00:07]} 55. Re5+ {[%emt 0:00:01]} Kd6 {[%emt 0:00:03]} 56. Bb4+ {[%emt 0:00:02]} Kc6 {[%emt 0:00:01]} 57. Bd2 {[%emt 0:00:03]} Kd6 {[%emt 0:00:06]} 58. Bb4+ {[%emt 0:00:02]} Kd7 {[%emt 0:00:01]} 59. Bd2 {[%emt 0:00:03]} Bg3 {[%emt 0:00:03]} 60. Kb1 {[%emt 0:00:26]} Bc2+ {[%emt 0:00:10]} 61. Kc1 {[%emt 0:00:02]} Kc6 {[%emt 0:00:09]} 62. Re4 {[%emt 0:00:12]} Bb3 {[%emt 0:00:04]} 63. Re5 {[%emt 0:00:03]} Kd7 {[%emt 0:00:14]} 64. Re4 {[%emt 0:00:05]} Kd6 {[%emt 0:00:26]} 65. Re8 {[%emt 0:00:07]} Bf2 {[%emt 0:00:04]} 66. Re5 {[%emt 0:00:07]} Bd4 {[%emt 0:00:03]} 67. Bb4+ {[%emt 0:00:10]} Kc6 {[%emt 0:00:05]} 68. Re6+ {[%emt 0:00:02]} Kd5 {[%emt 0:00:06]} 69. Re8 {[%emt 0:00:02]} Bf2 {[%emt 0:00:08]} 70. Re5+ {[%emt 0:00:08]} Kc6 {[%emt 0:00:02]} 71. Re6+ {[%emt 0:00:03]} Kd7 {[%emt 0:00:02]} 72. Re4 {[%emt 0:00:07]} Kc6 {[%emt 0:00:05]} 73. Re6+ {[%emt 0:00:04]} Kd5 {[%emt 0:00:03]} 74. Re5+ {[%emt 0:00:02]} Kc6 {[%emt 0:00:01]} 75. Bd2 {[%emt 0:00:02]} Bd4 {[%emt 0:00:04]} 76. Re8 {[%emt 0:00:09]} Kd7 {[%emt 0:00:04]} 77. Re4 {[%emt 0:00:03]} Bf6 {[%emt 0:00:01]} 78. Be1 {[%emt 0:00:13]} Kd6 {[%emt 0:00:05]} 79. Re8 {[%emt 0:00:08]} Ba4 {[%emt 0:00:04]} 80. Ra8 {[%emt 0:00:13]} Bc2 {[%emt 0:00:12]} 81. Re8 {[%emt 0:00:07]} Kd5 {[%emt 0:00:05]} 82. Bc3 {[%emt 0:00:16]} Bh4 {[%emt 0:00:06]} 83. Re5+ {[%emt 0:00:03]} Kc6 {[%emt 0:00:03]} 84. Re6+ {[%emt 0:00:01]} Kd5 {[%emt 0:00:04]} 85. Re5+ {[%emt 0:00:02]} Kc6 {[%emt 0:00:02]} 86. Re6+ {[%emt 0:00:02]} Kd7 {[%emt 0:00:19]} 87. Re5 {[%emt 0:00:03]} Bb3 {[%emt 0:00:03]} 88. Re4 {[%emt 0:00:06]} Kc6 {[%emt 0:00:05]} 89. Re5 {[%emt 0:00:03]} Bg3 {[%emt 0:00:03]} 90. Bd2 {[%emt 0:00:04]} Kd6 {[%emt 0:00:02]} 91. Re4 {[%emt 0:00:02]} Bf2 {[%emt 0:00:06]} 92. Bb4+ {[%emt 0:00:06]} Kd7 {[%emt 0:00:04]} 93. Bd2 {[%emt 0:00:01]} Kd6 {[%emt 0:00:04]} 94. Bc3 {[%emt 0:00:05]} Kd5 {[%emt 0:00:06]} 95. Re5+ {[%emt 0:00:02]} Kd6 {[%emt 0:00:02]} 96. Re8 {[%emt 0:00:02]} Bg3 {[%emt 0:00:04]} 97. f5 {[%emt 0:00:11]} Bf4+ {[%emt 0:00:17]} 98. Bd2 {[%emt 0:00:03]} Be5 {[%emt 0:00:07]} 99. Bc3 {[%emt 0:00:11]} Bf4+ {[%emt 0:00:02]} 100. Bd2 {[%emt 0:00:01]} Be5 {[%emt 0:00:01]} 101. Bc3 {[%emt 0:00:07]} Bf4+ {[%emt 0:00:02]} 1/2-1/2

[Event "European Online Club-ch-E 2021"]
[Site "Online"]
[Date "2021.03.27"]
[Round "5.8"]
[White "Cornette, Matthieu"]
[Black "Yashas, D.."]
[Result "1/2-1/2"]
[ECO "B01"]
[WhiteElo "2555"]
[BlackElo "2296"]
[Annotator "ChessBase"]
[PlyCount "121"]
[EventDate "2021.03.27"]
[EventType "team-tourn"]
[EventCountry "NET"]
[SourceTitle "playchess.com"]
[Source "ChessBase"]
[SourceQuality "1"]
[TimeControl "900+5"]

1. e4 {[%emt 0:00:00]} d5 {[%emt 0:00:07]} 2. exd5 {[%emt 0:00:04]} Nf6 {[%emt 0:00:03]} 3. d4 {[%emt 0:00:06]} Nxd5 {[%emt 0:00:05]} 4. c4 {[%emt 0:00:11]} Nb6 {[%emt 0:00:04]} 5. Nf3 {[%emt 0:00:02]} g6 {[%emt 0:00:05]} 6. a4 {[%emt 0:00:08]} a5 {[%emt 0:00:24]} 7. c5 {[%emt 0:00:05]} Nd5 {[%emt 0:03:15]} 8. Qb3 {[%emt 0:00:38]} Nc6 {[%emt 0:02:43]} 9. Bc4 {[%emt 0:00:11]} e6 {[%emt 0:00:06]} 10. Nc3 {[%emt 0:01:23]} Ndb4 {[%emt 0:01:29]} 11. O-O {[%emt 0:01:30]} Bg7 {[%emt 0:00:21]} 12. Rd1 {[%emt 0:00:48]} O-O {[%emt 0:00:19]} 13. Bg5 {[%emt 0:00:44]} Bf6 {[%emt 0:00:13]} 14. Bxf6 {[%emt 0:00:46]} Qxf6 {[%emt 0:00:03]} 15. Nb5 {[%emt 0:00:09]} Qd8 {[%emt 0:00:40]} 16. Qe3 {[%emt 0:00:33]} Kg7 {[%emt 0:00:21]} 17. Qf4 {[%emt 0:00:26]} Na6 {[%emt 0:00:42]} 18. Ng5 {[%emt 0:01:32]} h6 {[%emt 0:02:34]} 19. Ne4 {[%emt 0:00:09]} f5 {[%emt 0:00:02]} 20. Nec3 {[%emt 0:00:20]} Qg5 {[%emt 0:00:33]} 21. Qf3 {[%emt 0:00:18]} Ncb4 {[%emt 0:00:10]} 22. Ne2 {[%emt 0:00:27]} Bd7 {[%emt 0:00:11]} 23. Nf4 {[%emt 0:00:28]} Rae8 {[%emt 0:00:03]} 24. g3 {[%emt 0:00:46]} Qf6 {[%emt 0:01:08]} 25. Qb3 {[%emt 0:00:58]} Bc8 {[%emt 0:00:10]} 26. Na7 {[%emt 0:01:04]} Bd7 {[%emt 0:00:17]} 27. Rd2 {[%emt 0:00:39]} c6 {[%emt 0:00:08]} 28. Re1 {[%emt 0:00:03]} Re7 {[%emt 0:00:28]} 29. Bxe6 {[%emt 0:00:36]} Rfe8 {[%emt 0:00:14]} 30. Rde2 {[%emt 0:00:43]} Qxd4 {[%emt 0:00:02]} 31. Rd1 {[%emt 0:00:22]} Nxc5 {[%emt 0:00:17]} 32. Rxd4 {[%emt 0:00:15]} Nxb3 {[%emt 0:00:01]} 33. Rxd7 {[%emt 0:00:26]} Rxd7 {[%emt 0:00:05]} 34. Bxd7 {[%emt 0:00:02]} Rxe2 {[%emt 0:00:05]} 35. Nxe2 {[%emt 0:00:00]} Nc5 {[%emt 0:00:02]} 36. Be8 {[%emt 0:00:11]} Nxa4 {[%emt 0:00:03]} 37. b3 {[%emt 0:00:11]} Nc5 {[%emt 0:00:01]} 38. Nd4 {[%emt 0:00:03]} Kf6 {[%emt 0:00:02]} 39. f4 {[%emt 0:00:09]} Nbd3 {[%emt 0:00:02]} 40. Nc8 {[%emt 0:00:08]} Nc1 {[%emt 0:00:03]} 41. Nb6 {[%emt 0:00:14]} N1xb3 {[%emt 0:00:03]} 42. Nxb3 {[%emt 0:00:06]} Nxb3 {[%emt 0:00:01]} 43. Kf2 {[%emt 0:00:02]} Nc5 {[%emt 0:00:09]} 44. Ke3 {[%emt 0:00:19]} a4 {[%emt 0:00:02]} 45. Kd4 {[%emt 0:00:05]} a3 {[%emt 0:00:11]} 46. Kc3 {[%emt 0:00:02]} Ne4+ {[%emt 0:00:09]} 47. Kb3 {[%emt 0:00:02]} g5 {[%emt 0:00:05]} 48. Bd7 {[%emt 0:00:09]} Nd2+ {[%emt 0:00:02]} 49. Kxa3 {[%emt 0:00:04]} Nf1 {[%emt 0:00:02]} 50. Bc8 {[%emt 0:00:18]} Nxh2 {[%emt 0:00:03]} 51. Bxb7 {[%emt 0:00:03]} Nf1 {[%emt 0:00:01]} 52. Bxc6 {[%emt 0:00:05]} Nxg3 {[%emt 0:00:09]} 53. fxg5+ {[%emt 0:00:06]} hxg5 {[%emt 0:00:05]} 54. Kb3 {[%emt 0:00:02]} f4 {[%emt 0:00:04]} 55. Kc3 {[%emt 0:00:11]} g4 {[%emt 0:00:01]} 56. Kd3 {[%emt 0:00:03]} Kg5 {[%emt 0:00:12]} 57. Nc4 {[%emt 0:00:05]} f3 {[%emt 0:00:02]} 58. Bxf3 {[%emt 0:00:07]} gxf3 {[%emt 0:00:02]} 59. Ke3 {[%emt 0:00:01]} Nf5+ {[%emt 0:00:04]} 60. Kxf3 {[%emt 0:00:02]} Ne3 {[%emt 0:00:08]} 61. Nxe3 {[%emt 0:00:02]} 1/2-1/2

[Event "European Online Club-ch-E 2021"]
[Site "Online"]
[Date "2021.03.27"]
[Round "5.11"]
[White "Arman, Deniz"]
[Black "Abasov, Nijat"]
[Result "1-0"]
[ECO "B22"]
[WhiteElo "2336"]
[BlackElo "2664"]
[Annotator "ChessBase"]
[PlyCount "87"]
[EventDate "2021.03.27"]
[EventType "team-tourn"]
[EventCountry "NET"]
[SourceTitle "playchess.com"]
[Source "ChessBase"]
[SourceQuality "1"]
[TimeControl "900+5"]

1. e4 {[%emt 0:00:00]} c5 {[%emt 0:00:01]} 2. c3 {[%emt 0:00:05]} Nf6 {[%emt 0:00:03]} 3. e5 {[%emt 0:00:02]} Nd5 {[%emt 0:00:00]} 4. d4 {[%emt 0:00:02]} cxd4 {[%emt 0:00:00]} 5. Nf3 {[%emt 0:00:11]} d6 {[%emt 0:00:23]} 6. Qxd4 {[%emt 0:00:04]} e6 {[%emt 0:00:02]} 7. Nbd2 {[%emt 0:00:03]} a6 {[%emt 0:00:03]} 8. Nc4 {[%emt 0:01:55]} Nc6 {[%emt 0:00:07]} 9. Qe4 {[%emt 0:00:51]} f5 {[%emt 0:01:32]} 10. Qe2 {[%emt 0:03:54]} dxe5 {[%emt 0:00:35]} 11. Nfxe5 {[%emt 0:00:09]} Nxe5 {[%emt 0:00:00]} 12. Nxe5 {[%emt 0:00:02]} Qc7 {[%emt 0:00:10]} 13. Qh5+ {[%emt 0:00:57]} g6 {[%emt 0:02:46]} 14. Nxg6 {[%emt 0:00:04]} Nf6 {[%emt 0:01:57]} 15. Qh4 {[%emt 0:00:38]} hxg6 {[%emt 0:00:01]} 16. Qxh8 {[%emt 0:00:29]} Kf7 {[%emt 0:00:02]} 17. Qh4 {[%emt 0:01:27]} Bd7 {[%emt 0:00:05]} 18. Bg5 {[%emt 0:03:12]} Bg7 {[%emt 0:04:02]} 19. Qf4 {[%emt 0:01:04]} Qb6 {[%emt 0:00:07]} 20. Qb4 {[%emt 0:00:21]} Qc6 {[%emt 0:00:35]} 21. O-O-O {[%emt 0:00:05]} Nd5 {[%emt 0:00:20]} 22. Qb3 {[%emt 0:00:32]} Rc8 {[%emt 0:00:12]} 23. Be2 {[%emt 0:00:39]} Qc5 {[%emt 0:01:02]} 24. Rxd5 {[%emt 0:00:03]} exd5 {[%emt 0:00:02]} 25. Bf3 {[%emt 0:00:02]} Be6 {[%emt 0:00:37]} 26. Re1 {[%emt 0:00:11]} Qc6 {[%emt 0:00:02]} 27. Kb1 {[%emt 0:00:03]} b5 {[%emt 0:00:05]} 28. Qb4 {[%emt 0:00:01]} Kg8 {[%emt 0:00:09]} 29. Qe7 {[%emt 0:00:04]} Bf7 {[%emt 0:00:01]} 30. Rd1 {[%emt 0:00:09]} Rf8 {[%emt 0:00:40]} 31. Be3 {[%emt 0:00:02]} Qc4 {[%emt 0:01:05]} 32. Qc5 {[%emt 0:00:07]} Qa4 {[%emt 0:00:05]} 33. b3 {[%emt 0:00:05]} Qh4 {[%emt 0:00:03]} 34. Bxd5 {[%emt 0:00:03]} Bxd5 {[%emt 0:00:04]} 35. Qxd5+ {[%emt 0:00:02]} Kh7 {[%emt 0:00:02]} 36. Bd4 {[%emt 0:00:03]} Rd8 {[%emt 0:00:31]} 37. Qb7 {[%emt 0:00:06]} Rg8 {[%emt 0:00:01]} 38. g3 {[%emt 0:00:04]} Qh5 {[%emt 0:00:07]} 39. Re1 {[%emt 0:00:03]} a5 {[%emt 0:00:13]} 40. Kb2 {[%emt 0:00:08]} Qh6 {[%emt 0:00:17]} 41. Kc2 {[%emt 0:00:08]} Kh8 {[%emt 0:00:10]} 42. Bxg7+ {[%emt 0:00:07]} Rxg7 {[%emt 0:00:00]} 43. Re8+ {[%emt 0:00:05]} Kh7 {[%emt 0:00:01]} 44. Qb8 {[%emt 0:00:05]} 1-0

[Event "European Online Club-ch-E 2021"]
[Site "Online"]
[Date "2021.03.27"]
[Round "5.12"]
[White "Safarli, Eltaj"]
[Black "Cederstam Barsk, Carl"]
[Result "1-0"]
[ECO "C77"]
[WhiteElo "2598"]
[BlackElo "2366"]
[Annotator "ChessBase"]
[PlyCount "83"]
[EventDate "2021.03.27"]
[EventType "team-tourn"]
[EventCountry "NET"]
[SourceTitle "playchess.com"]
[Source "ChessBase"]
[SourceQuality "1"]
[TimeControl "900+5"]

1. e4 {[%emt 0:00:00]} e5 {[%emt 0:00:15]} 2. Nf3 {[%emt 0:00:06]} Nc6 {[%emt 0:00:05]} 3. Bb5 {[%emt 0:00:04]} a6 {[%emt 0:00:04]} 4. Ba4 {[%emt 0:00:02]} Nf6 {[%emt 0:01:01]} 5. Nc3 {[%emt 0:00:02]} b5 {[%emt 0:00:32]} 6. Bb3 {[%emt 0:00:02]} Bc5 {[%emt 0:00:22]} 7. a4 {[%emt 0:00:24]} Rb8 {[%emt 0:00:30]} 8. axb5 {[%emt 0:00:02]} axb5 {[%emt 0:00:01]} 9. d3 {[%emt 0:00:01]} O-O {[%emt 0:00:26]} 10. O-O {[%emt 0:00:10]} h6 {[%emt 0:00:45]} 11. Nd5 {[%emt 0:03:00]} d6 {[%emt 0:00:46]} 12. h3 {[%emt 0:00:03]} Nxd5 {[%emt 0:00:24]} 13. Bxd5 {[%emt 0:00:15]} Ne7 {[%emt 0:00:04]} 14. Bb3 {[%emt 0:00:02]} Ng6 {[%emt 0:01:18]} 15. c3 {[%emt 0:00:19]} Bb6 {[%emt 0:00:41]} 16. Be3 {[%emt 0:00:31]} Qf6 {[%emt 0:00:56]} 17. Re1 {[%emt 0:00:49]} Nf4 {[%emt 0:00:55]} 18. d4 {[%emt 0:00:28]} Kh8 {[%emt 0:01:14]} 19. Bxf4 {[%emt 0:04:21]} Qxf4 {[%emt 0:00:05]} 20. Qd3 {[%emt 0:00:01]} Qf6 {[%emt 0:01:09]} 21. Rad1 {[%emt 0:01:10]} Rg8 {[%emt 0:00:06]} 22. Nh2 {[%emt 0:00:46]} b4 {[%emt 0:02:09]} 23. Re3 {[%emt 0:00:15]} Be6 {[%emt 0:01:06]} 24. Rf3 {[%emt 0:00:25]} Qe7 {[%emt 0:00:02]} 25. Bxe6 {[%emt 0:00:05]} Qxe6 {[%emt 0:00:41]} 26. Ng4 {[%emt 0:00:05]} bxc3 {[%emt 0:00:07]} 27. bxc3 {[%emt 0:00:02]} exd4 {[%emt 0:00:14]} 28. cxd4 {[%emt 0:00:03]} Rbe8 {[%emt 0:00:06]} 29. Re1 {[%emt 0:01:07]} Rgf8 {[%emt 0:00:04]} 30. Ree3 {[%emt 0:01:29]} Qg6 {[%emt 0:00:33]} 31. Rf5 {[%emt 0:00:10]} Re6 {[%emt 0:00:29]} 32. Rg3 {[%emt 0:00:09]} Qh7 {[%emt 0:00:08]} 33. d5 {[%emt 0:00:03]} Re7 {[%emt 0:00:07]} 34. h4 {[%emt 0:00:46]} Ra8 {[%emt 0:00:05]} 35. h5 {[%emt 0:00:05]} Ra1+ {[%emt 0:00:03]} 36. Kh2 {[%emt 0:00:01]} f6 {[%emt 0:00:09]} 37. Qc3 {[%emt 0:00:12]} Ra4 {[%emt 0:00:14]} 38. Nxf6 {[%emt 0:00:06]} Bd4 {[%emt 0:00:09]} 39. Nxh7 {[%emt 0:00:08]} Bxc3 {[%emt 0:00:01]} 40. Nf8 {[%emt 0:00:05]} Rexe4 {[%emt 0:00:09]} 41. Ng6+ {[%emt 0:00:02]} Kh7 {[%emt 0:00:02]} 42. Rxc3 {[%emt 0:00:08]} 1-0

[Event "European Online Club-ch-E 2021"]
[Site "Online"]
[Date "2021.03.27"]
[Round "5.13"]
[White "Sirosh, Ilja"]
[Black "Ozturk Orenli, Kubra"]
[Result "1/2-1/2"]
[ECO "C01"]
[WhiteElo "2400"]
[BlackElo "2330"]
[Annotator "NA"]
[PlyCount "75"]
[EventDate "2021.03.27"]
[EventType "team-tourn"]
[EventCountry "NET"]
[SourceTitle "playchess.com"]
[Source "ChessBase"]
[SourceQuality "1"]
[TimeControl "900+5"]

1. e4 {[%emt 0:00:00]} e5 {[%emt 0:00:05]} 2. Nf3 {[%emt 0:00:03]} Nf6 {[%emt 0:00:07]} 3. Nxe5 {[%emt 0:00:09]} d6 {[%emt 0:00:02]} 4. Nf3 {[%emt 0:00:02]} Nxe4 {[%emt 0:00:02]} 5. d3 {[%emt 0:00:34]} Nf6 {[%emt 0:00:03]} 6. d4 {[%emt 0:00:02]} d5 {[%emt 0:00:02]} 7. Bd3 {[%emt 0:00:02]} Bd6 {[%emt 0:00:12]} 8. Qe2+ {[%emt 0:00:03]} Qe7 {[%emt 0:00:06]} 9. Qxe7+ {[%emt 0:00:04]} Bxe7 {[%emt 0:00:05]} 10. Bf4 {[%emt 0:00:36]} c6 {[%emt 0:00:11]} 11. O-O {[%emt 0:00:06]} O-O {[%emt 0:00:05]} 12. Re1 {[%emt 0:00:07]} Re8 {[%emt 0:00:09]} 13. Nbd2 {[%emt 0:00:20]} h6 {[%emt 0:00:15]} 14. h3 {[%emt 0:01:08]} Be6 {[%emt 0:00:20]} 15. a4 {[%emt 0:01:02]} a5 {[%emt 0:00:20]} 16. Nb3 {[%emt 0:01:04]} Nbd7 {[%emt 0:00:14]} 17. Re2 {[%emt 0:00:54]} g5 {[%emt 0:01:10]} 18. Bh2 {[%emt 0:00:09]} b6 {[%emt 0:00:31]} 19. Ne5 {[%emt 0:00:49]} Nxe5 {[%emt 0:00:42]} 20. dxe5 {[%emt 0:00:52]} Nd7 {[%emt 0:02:00]} 21. Nd4 {[%emt 0:00:07]} c5 {[%emt 0:00:14]} 22. Nxe6 {[%emt 0:00:21]} fxe6 {[%emt 0:00:02]} 23. c4 {[%emt 0:00:38]} d4 {[%emt 0:00:03]} 24. Rf1 {[%emt 0:01:02]} Rf8 {[%emt 0:00:28]} 25. f3 {[%emt 0:01:51]} Kg7 {[%emt 0:00:07]} 26. g3 {[%emt 0:00:39]} Rae8 {[%emt 0:02:29]} 27. f4 {[%emt 0:00:23]} Bd8 {[%emt 0:00:11]} 28. Kg2 {[%emt 0:01:39]} Bc7 {[%emt 0:00:24]} 29. h4 {[%emt 0:00:56]} Re7 {[%emt 0:00:35]} 30. hxg5 {[%emt 0:00:16]} hxg5 {[%emt 0:00:03]} 31. g4 {[%emt 0:00:14]} gxf4 {[%emt 0:00:48]} 32. Rxf4 {[%emt 0:00:02]} Ref7 {[%emt 0:00:20]} 33. Rxf7+ {[%emt 0:00:04]} Rxf7 {[%emt 0:00:03]} 34. Bg3 {[%emt 0:00:12]} Nf8 {[%emt 0:00:07]} 35. Bh4 {[%emt 0:00:34]} Nd7 {[%emt 0:00:03]} 36. Bg3 {[%emt 0:00:15]} Nf8 {[%emt 0:00:01]} 37. Bh4 {[%emt 0:00:16]} Nd7 {[%emt 0:00:02]} 38. Bg3 {[%emt 0:00:03]} 1/2-1/2

[Event "European Online Club-ch-E 2021"]
[Site "Online"]
[Date "2021.03.27"]
[Round "5.14"]
[White "Caglar, Sila"]
[Black "Chukavin, Kirill"]
[Result "1/2-1/2"]
[ECO "E57"]
[WhiteElo "2250"]
[BlackElo "2384"]
[Annotator "NA"]
[PlyCount "165"]
[EventDate "2021.03.27"]
[EventType "team-tourn"]
[EventCountry "NET"]
[SourceTitle "playchess.com"]
[Source "ChessBase"]
[SourceQuality "1"]
[TimeControl "900+5"]

1. e4 {[%emt 0:00:00]} c6 {[%emt 0:00:03]} 2. d4 {[%emt 0:00:04]} d5 {[%emt 0:00:01]} 3. exd5 {[%emt 0:00:02]} cxd5 {[%emt 0:00:02]} 4. c4 {[%emt 0:00:02]} Nf6 {[%emt 0:00:02]} 5. Nc3 {[%emt 0:00:03]} e6 {[%emt 0:00:01]} 6. a3 {[%emt 0:00:31]} Nc6 {[%emt 0:00:39]} 7. Nf3 {[%emt 0:00:09]} Be7 {[%emt 0:00:42]} 8. Bd3 {[%emt 0:01:12]} dxc4 {[%emt 0:00:18]} 9. Bxc4 {[%emt 0:00:06]} O-O {[%emt 0:00:01]} 10. O-O {[%emt 0:00:03]} b6 {[%emt 0:00:15]} 11. Re1 {[%emt 0:03:17]} Bb7 {[%emt 0:00:16]} 12. Bg5 {[%emt 0:01:04]} Rc8 {[%emt 0:00:13]} 13. Ba2 {[%emt 0:00:38]} h6 {[%emt 0:00:08]} 14. Bf4 {[%emt 0:01:53]} Na5 {[%emt 0:04:11]} 15. Qd3 {[%emt 0:01:18]} Re8 {[%emt 0:02:13]} 16. Ne5 {[%emt 0:00:27]} Nd5 {[%emt 0:04:19]} 17. Nxd5 {[%emt 0:01:58]} Bxd5 {[%emt 0:00:09]} 18. Bb1 {[%emt 0:00:38]} f5 {[%emt 0:00:04]} 19. Qg3 {[%emt 0:01:20]} Bh4 {[%emt 0:01:06]} 20. Qg6 {[%emt 0:00:27]} Qf6 {[%emt 0:00:02]} 21. Ba2 {[%emt 0:00:15]} Bxa2 {[%emt 0:00:15]} 22. Rxa2 {[%emt 0:00:04]} Qxg6 {[%emt 0:00:01]} 23. Nxg6 {[%emt 0:00:04]} Bf6 {[%emt 0:00:04]} 24. Be5 {[%emt 0:00:22]} Nb3 {[%emt 0:00:16]} 25. Rd1 {[%emt 0:00:16]} Kf7 {[%emt 0:00:13]} 26. Nf4 {[%emt 0:00:21]} Bxe5 {[%emt 0:00:03]} 27. dxe5 {[%emt 0:00:03]} Red8 {[%emt 0:00:01]} 28. Re1 {[%emt 0:00:11]} Rc1 {[%emt 0:00:16]} 29. Kf1 {[%emt 0:00:03]} Rdd1 {[%emt 0:00:41]} 30. Rxd1 {[%emt 0:00:05]} Rxd1+ {[%emt 0:00:01]} 31. Ke2 {[%emt 0:00:02]} Rd4 {[%emt 0:00:23]} 32. Ke3 {[%emt 0:00:26]} g5 {[%emt 0:00:16]} 33. Nh5 {[%emt 0:00:13]} f4+ {[%emt 0:00:21]} 34. Kf3 {[%emt 0:00:04]} Kg6 {[%emt 0:00:03]} 35. g4 {[%emt 0:00:05]} Rd1 {[%emt 0:00:09]} 36. a4 {[%emt 0:00:05]} a5 {[%emt 0:00:06]} 37. Ra3 {[%emt 0:00:03]} Nd4+ {[%emt 0:00:03]} 38. Kg2 {[%emt 0:00:07]} Re1 {[%emt 0:00:05]} 39. Rd3 {[%emt 0:00:06]} Nc6 {[%emt 0:00:06]} 40. Rd6 {[%emt 0:00:03]} Nxe5 {[%emt 0:00:02]} 41. Rxe6+ {[%emt 0:00:02]} Kf7 {[%emt 0:00:01]} 42. Rxh6 {[%emt 0:00:06]} Nxg4 {[%emt 0:00:09]} 43. Rxb6 {[%emt 0:00:02]} Ra1 {[%emt 0:00:07]} 44. Rb5 {[%emt 0:00:06]} Kg6 {[%emt 0:00:02]} 45. Nxf4+ {[%emt 0:00:08]} gxf4 {[%emt 0:00:01]} 46. Rxa5 {[%emt 0:00:02]} Rb1 {[%emt 0:00:14]} 47. Kf3 {[%emt 0:00:09]} Nxh2+ {[%emt 0:00:02]} 48. Kxf4 {[%emt 0:00:02]} Rxb2 {[%emt 0:00:01]} 49. Kg3 {[%emt 0:00:08]} Nf1+ {[%emt 0:00:02]} 50. Kf3 {[%emt 0:00:04]} Nd2+ {[%emt 0:00:02]} 51. Kg2 {[%emt 0:00:07]} Ne4 {[%emt 0:00:04]} 52. Kf3 {[%emt 0:00:06]} Nxf2 {[%emt 0:00:04]} 53. Rb5 {[%emt 0:00:06]} Ra2 {[%emt 0:00:03]} 54. a5 {[%emt 0:00:03]} Kf6 {[%emt 0:00:02]} 55. a6 {[%emt 0:00:08]} Nd1 {[%emt 0:00:12]} 56. Rb6+ {[%emt 0:00:05]} Ke5 {[%emt 0:00:02]} 57. Rh6 {[%emt 0:00:06]} Nc3 {[%emt 0:00:02]} 58. Ke3 {[%emt 0:00:03]} Nd5+ {[%emt 0:00:07]} 59. Kd3 {[%emt 0:00:03]} Nf6 {[%emt 0:00:05]} 60. Kc4 {[%emt 0:00:08]} Rxa6 {[%emt 0:00:02]} 61. Kb5 {[%emt 0:00:02]} Ra1 {[%emt 0:00:04]} 62. Rh2 {[%emt 0:00:05]} Rb1+ {[%emt 0:00:06]} 63. Kc4 {[%emt 0:00:05]} Rc1+ {[%emt 0:00:01]} 64. Kb3 {[%emt 0:00:03]} Ne4 {[%emt 0:00:02]} 65. Rh8 {[%emt 0:00:04]} Kd5 {[%emt 0:00:06]} 66. Rd8+ {[%emt 0:00:03]} Nd6 {[%emt 0:00:07]} 67. Kb2 {[%emt 0:00:03]} Rc6 {[%emt 0:00:03]} 68. Kb3 {[%emt 0:00:02]} Kd4 {[%emt 0:00:03]} 69. Kb2 {[%emt 0:00:06]} Kd3 {[%emt 0:00:02]} 70. Rb8 {[%emt 0:00:15]} Nf5 {[%emt 0:00:16]} 71. Rd8+ {[%emt 0:00:04]} Nd4 {[%emt 0:00:01]} 72. Rb8 {[%emt 0:00:01]} Rc2+ {[%emt 0:00:10]} 73. Kb1 {[%emt 0:00:02]} Rh2 {[%emt 0:00:04]} 74. Rd8 {[%emt 0:00:09]} Kc3 {[%emt 0:00:12]} 75. Rc8+ {[%emt 0:00:06]} Kd3 {[%emt 0:00:05]} 76. Rd8 {[%emt 0:00:03]} Rg2 {[%emt 0:00:01]} 77. Kc1 {[%emt 0:00:12]} Rg7 {[%emt 0:00:08]} 78. Rb8 {[%emt 0:00:05]} Rg1+ {[%emt 0:00:10]} 79. Kb2 {[%emt 0:00:03]} Rg2+ {[%emt 0:00:01]} 80. Kb1 {[%emt 0:00:02]} Ne2 {[%emt 0:00:10]} 81. Rd8+ {[%emt 0:00:04]} Nd4 {[%emt 0:00:10]} 82. Rb8 {[%emt 0:00:02]} Rh2 {[%emt 0:00:05]} 83. Rd8 {[%emt 0:00:07]} 1/2-1/2